Cogmind - Beta 16.1 @@@ ROGUE MODE // 2026.03.24 @ 20:10:34 Player: JaideBun Result: Destroyed by GX-RZL(R) with Subdweller Laser Performance ------------- Evolutions (0) 0 Regions Visited (2) 400 Robots Destroyed (17) 85 Value Destroyed (399) 399 Prototype IDs (2) 40 Alien Tech Used (0) 0 Bonus (0) 0 TOTAL SCORE: 924 Bonus ------- None Cogmind --------- Core Integrity 0/250 Matter 280/300 Energy 112/125 System Corruption 0% Temperature Cool (6) Movement Walking (190) Ox1 Location -10/Subcaves Parts ------- > --- POWER (1) -------- Light Ion Engine > --- PROPULSION (2) --- Aluminum Leg Aluminum Leg > --- UTILITY (2) ------ Medium Storage Unit Structural Scanner > --- WEAPON (2) ------- Subdweller Beam Cannon Makeshift Shrapnel Gun > --- INVENTORY (10) --- Huge Storage Unit High-capacity Matter Pod (200) Sensor Array Improved Terrain Scanner Mining Laser Mining Laser Peak State ------------ > --- POWER ------------ Light Ion Engine > --- PROPULSION ------- Aluminum Leg Aluminum Leg > --- UTILITY ---------- Medium Storage Unit Structural Scanner > --- WEAPON ----------- Makeshift Laser Subdweller Machine Gun > --- INVENTORY -------- Huge Storage Unit High-capacity Matter Pod Sensor Array Improved Terrain Scanner Mining Laser Mining Laser [Rating: 11] Favorites ----------- Power Light Ion Engine Engine Light Ion Engine Propulsion Aluminum Leg Leg Aluminum Leg Utility Medium Storage Unit Device Sensor Array Storage Medium Storage Unit Weapon Assault Rifle Energy Gun EM Pulse Gun Energy Cannon Subdweller Beam Cannon Ballistic Gun Assault Rifle Special Weapon Mining Laser Build | -11 -10 -10 ------- Run | Yrd Mat Sub Slots Evolved . | . . . Power . | . . . Propulsion . | . . . Utility . | . . . Weapon . | . . . Parts Attached 23 | 7 8 8 Power 2 | 1 . 1 Engine 2 | 1 . 1 Core . | . . . Reactor . | . . . Propulsion 4 | 2 1 1 Treads . | . . . Leg 4 | 2 1 1 Wheel . | . . . Hover . | . . . Flight . | . . . Utility 8 | 2 5 1 Device 3 | 1 1 1 Storage 5 | 1 4 . Processor . | . . . Hackware . | . . . Protection . | . . . Artifact . | . . . Weapon 9 | 2 2 5 Energy Gun 3 | 1 1 1 Energy Cannon 1 | . . 1 Ballistic Gun 3 | 1 . 2 Ballistic Cannon . | . . . Launcher . | . . . Special Weapon 2 | . 1 1 Impact Weapon . | . . . Slashing Weapon . | . . . Piercing Weapon . | . . . Special Melee Weapon . | . . . Unidentified Prototypes . | . . . Parts Lost 5 | . . 5 Power 1 | . . 1 Propulsion 1 | . . 1 Utility . | . . . Weapon 3 | . . 3 Highest Loss Streak 2 | . . 2 To Critical Strikes . | . . . Average Backups 5 | . 5 6 Power . | . . . Propulsion 1 | . 1 . Utility 2 | . 2 4 Weapon 1 | . 1 2 Tool/Special . | . . . Unused Backups . | . . . Power . | . . . Propulsion . | . . . Utility . | . . . Weapon . | . . . Tool/Special . | . . . Average Slot Usage (%) 98 | . 99 96 Engine 13 | . 14 13 Leg 28 | . 28 28 Device 13 | . 13 14 Storage 14 | . 14 14 Energy Gun 6 | . 7 5 Energy Cannon 1 | . . 4 Ballistic Gun 13 | . 14 11 Special Weapon 5 | . 6 4 Peak Build Rating 11 | 9 9 11 Average Rating 7 | 5 7 8 On Entrance 5 | . 9 7 Avg Prop Armor Cover (%) . | . . . Naked Turns . | . . . Heaviest Build 26 | 13 18 26 Greatest Support 20 | 20 20 20 Greatest Overweight (x) 1 | . . 1 Average Overweight (x) . | . . . Largest Inventory Capacity 25 | 8 25 10 Average Capacity 9 | 7 8 10 Most Carried 10 | 1 10 8 Average Carried 5 | . 5 6 Final Capacity 10 | 8 10 10 Final Carried 7 | 1 7 6 Class Distribution -------------------- 98% | Mutant Dominant Class ---------------- Mutant | -10/Materials Mutant | -10/Subcaves Resources | -11 -10 -10 ----------- Run | Yrd Mat Sub Matter Collected 847 | 263 439 145 Remotely . | . . . Salvage Created 563 | 44 107 412 Parts 51 | 5 9 37 Haulers Intercepted . | . . . Recyclers Shooed . | . . . Parts Field Recycled . | . . . Retrieved Matter . | . . . Parts Self-Destructed 18 | . . 18 Prevented . | . . . Parts Restored . | . . . Kills | -11 -10 -10 ------- Run | Yrd Mat Sub Combat Hostiles Destroyed 11 | . 2 9 Guns 9 | . 1 8 Cannons 1 | . . 1 AOE 1 | . 1 . Classes Destroyed 7 | 1 3 3 Worker 1 | . 1 . Tunneler 2 | 2 . . Turret 2 | . . 2 Watcher 1 | . 1 . Swarmer 4 | . . 4 Grunt 2 | . 2 . Subdweller 5 | . . 5 Best Kill Streak 4 | 2 2 4 Combat Bots Only 4 | . 1 4 Max Kills in Single Turn 2 | 1 2 1 Gunslinging . | . . . Exploded 1 | . 1 . Melee . | . . . Uniques/NPCs Destroyed . | . . . Combat | -11 -10 -10 -------- Run | Yrd Mat Sub Hostile Shots Fired 123 | . 4 119 Missed 43 | . . 43 Hits 80 | . 4 76 Projectile 80 | . 4 76 Critical Strikes 1 | . . 1 Damage Taken 979 | . 60 919 Core 265 | . 21 244 Absorbed by Shields . | . . . Regen/Repaired (Parts) 19 | . 19 . Core Remaining (%) 100 | 100 . . Volleys Fired 76 | 3 12 61 Largest 2 | 2 2 2 Hottest 180 | 60 120 180 Shots Fired 104 | 6 20 78 Gun 82 | 6 15 61 Cannon 9 | . . 9 Launcher . | . . . Special 13 | . 5 8 Kinetic 53 | 3 8 42 Thermal 41 | . 5 36 Explosive . | . . . Electromagnetic 10 | 3 7 . Robot Hit Streak 10 | 2 4 10 Robot Miss Streak 6 | 2 6 3 Penetration Max . | . . . Secondary Targets . | . . . Shots Hit Robots 61 | 3 7 51 Core Hits 33 | 2 7 24 Critical Kills 1 | 1 . . Critical Parts Destroyed . | . . . Critical Strikes 2 | 1 . 1 Burn 1 | . . 1 Destroy 1 | 1 . . Melee Attacks . | . . . Impact . | . . . Slashing . | . . . Piercing . | . . . Sneak Attacks . | . . . Combat Hostiles . | . . . Follow-up Attacks . | . . . Damage Inflicted 1233 | 37 173 1023 Guns 883 | 37 69 777 Cannons 222 | . . 222 Explosions 104 | . 104 . Melee . | . . . Ramming . | . . . Kinetic 672 | 22 37 613 Thermal 514 | . 104 410 Explosive . | . . . Electromagnetic 47 | 15 32 . Impact . | . . . Slashing . | . . . Piercing . | . . . Highest Corruption . | . . . Average Corruption . | . . . Corruption Purged . | . . . Corruption Blocked . | . . . Overload Shots 1 | . . 1 Effects 1 | . . 1 Heat Surge 1 | . . 1 Overflow Damage . | . . . Projectiles . | . . . Explosions . | . . . Melee . | . . . Knockbacks . | . . . Impact . | . . . Kinetic . | . . . Secondary . | . . . Self-Inflicted Damage . | . . . Shots . | . . . Rammed . | . . . Targets Rammed . | . . . Kicked . | . . . Crushed . | . . . Highest Temperature 226 | . 22 226 Average Temperature 41 | . 10 72 Received Heat Transfer 168 | . 33 135 Siege Activations . | . . . Martial Activations . | . . . Shielding Activations . | . . . Robots Disrupted . | . . . Combat Hostiles . | . . . Robots Corrupted . | . . . Combat Hostiles . | . . . Parts Fried . | . . . Impact Corruptions . | . . . Robots Melted . | . . . Combat Hostiles . | . . . Parts Melted 1 | . . 1 Heat Transferred 919 | . 150 769 Parts Sabotaged . | . . . Parts Stolen . | . . . Parts Stripped . | . . . Power Chain Reactions 2 | . 2 . Alert | -11 -10 -10 ------- Run | Yrd Mat Sub Maximum Alert Level . | . . . Low Security (%) 100 | 100 100 . Level 1 . | . . . Level 2 . | . . . Level 3 . | . . . Level 4 . | . . . Level 5 . | . . . High Security . | . . . Max Security . | . . . Peak Influence 48 | 5 48 . Initial . | . . . Average 2 | . 3 . Influence Increases 354 | 10 104 240 Destroy 0b10 Robot/C 160 | . 40 120 Destroy 0b10 Robot/NC 20 | 10 10 . Destroy Leader 22 | . 22 . Successful Hack 23 | . 23 . Destroy Structure 9 | . 9 . Lose Combat Pursuer 120 | . . 120 Influence Decreases 271 | 10 104 157 Time Decay 241 | 10 104 127 Lost Part 30 | . . 30 Squads Dispatched 2 | . 2 . Investigation 1 | . 1 . Extermination . | . . . Reinforcement 1 | . 1 . Assault . | . . . Garrison . | . . . Intercept . | . . . Searches Triggered . | . . . Construction Impeded . | . . . Haulers Reinforced . | . . . Active Scanning Responses . | . . . Cargo Convoy Interrupts . | . . . Stealth | -11 -10 -10 --------- Run | Yrd Mat Sub Distress Signals 2 | . 2 . Communications Jammed . | . . . Distress Signals . | . . . Times Spotted 24 | . 6 18 Peak Tracking Total 6 | . 2 6 Tactical Retreats 4 | . . 4 Traps | -11 -10 -10 ------- Run | Yrd Mat Sub Traps Triggered . | . . . Indirectly . | . . . Trap Hack Attempts . | . . . Triggered . | . . . Disarmed . | . . . Reprogrammed . | . . . Reused . | . . . Traps Extracted . | . . . Installed . | . . . Triggered . | . . . Machines | -11 -10 -10 ---------- Run | Yrd Mat Sub Machines Disabled 1 | . 1 . Max in Single Turn 1 | . 1 . Machines Repaired . | . . . Machines Dismantled . | . . . Machines Sabotaged . | . . . Overloaded Fab Kills . | . . . Hacking | -11 -10 -10 --------- Run | Yrd Mat Sub Machines Accessed 8 | . 8 . Terminals 6 | . 6 . Fabricators . | . . . Repair Stations 1 | . 1 . Recycling Units 1 | . 1 . Scanalyzers . | . . . Garrison Access . | . . . Total Hacks 17 | . 17 . Successful 9 | . 9 . Failed 8 | . 8 . Catastrophic . | . . . Database Lockouts . | . . . Manual . | . . . Terminals 13 | . 13 . Fabricators . | . . . Repair Stations 3 | . 3 . Recycling Units 1 | . 1 . Scanalyzers . | . . . Garrison Access . | . . . Terminal Hacks 5 | . 5 . Prototype ID Bank 1 | . 1 . Branch Access Points 1 | . 1 . Locate Traps 2 | . 2 . Zone Layout 1 | . 1 . Fabricator Hacks . | . . . Repair Station Hacks 3 | . 3 . Scan Component 2 | . 2 . Repair 1 | . 1 . Recycling Unit Hacks 1 | . 1 . Retrieve Matter 1 | . 1 . Scanalyzer . | . . . Garrison Access Hacks . | . . . Unauthorized Hacks . | . . . Terminals . | . . . Fabricators . | . . . Repair Stations . | . . . Recycling Units . | . . . Scanalyzers . | . . . Garrison Access . | . . . Data Cores Recovered . | . . . Used . | . . . Hacking Detections 7 | . 7 . Full Trace Events 2 | . 2 . Feedback Events . | . . . Feedback Blocked . | . . . Robot Schematics Acquired . | . . . Robots Built . | . . . Authchips . | . . . Time . | . . . Total Robot Build Rating . | . . . Part Schematics Acquired . | . . . Parts Built . | . . . Authchips . | . . . Time . | . . . Total Part Build Rating . | . . . Part Studies Acquired . | . . . Parts Repaired 1 | . 1 . Time 26 | . 26 . Parts Recycled . | . . . Recycled Matter . | . . . Retrieved Matter 176 | . 176 . Retrieved Components . | . . . Parts Scanalyzed . | . . . Part Schematics Acquired . | . . . Parts Damaged . | . . . Bothacking | -11 -10 -10 ------------ Run | Yrd Mat Sub Used RIF Installer . | . . . Robots Hacked . | . . . Non-combat . | . . . Combat . | . . . Robot Hacks Applied . | . . . Relay Couplers Released . | . . . Fabnet Peak Effective % . | . . . Robots Rewired . | . . . Allies Hacked . | . . . Hacks Repelled . | . . . Allies | -11 -10 -10 -------- Run | Yrd Mat Sub Total Allies . | . . . Largest Group . | . . . Highest-Rated Group . | . . . Highest-Rated Ally . | . . . Total Orders . | . . . Ally Attacks . | . . . Total Damage . | . . . Kills . | . . . Allies Corrupted . | . . . Allies Melted . | . . . Intel | -11 -10 -10 ------- Run | Yrd Mat Sub Active Infowar (turns) 1990 | 13 1118 859 Sensors 865 | . 815 50 Terrain 316 | 13 303 . Structural 809 | . . 809 Robot Analysis Total . | . . . Derelict Logs Recovered . | . . . Drone Launches . | . . . Drone Recoveries . | . . . Exploration | -11 -10 -10 ------------- Run | Yrd Mat Sub Turns Passed 2098 | 92 1147 859 Spaces Moved 1369 | 65 816 488 Core 8 | 8 . . Treads . | . . . Legs 1361 | 57 816 488 Wheels . | . . . Hover . | . . . Flight . | . . . Fastest Speed 50 | 50 120 120 Average Speed 126 | 111 120 138 Slowest Speed 190 | 120 120 190 Overloaded Moves . | . . . Propulsion Burnouts . | . . . Robots Hopped . | . . . Potential Cave-ins . | . . . Cave-ins Triggered . | . . . Exploration Rate (%) 46 | 4 97 38 Regions Visited 2 Branch Regions 1 Pre-discovered Areas . | . . . Known Exits Taken . | . . . Unknown Exits Taken 2 | 1 1 . Scrap Searched . | . . . Spaces Dug 4 | . 4 . Terrain Destroyed 8 | . 8 . Melee . | . . . Projectile 4 | . 4 . AOE 4 | . 4 . Terrain Rammed . | . . . Walls Destroyed . | . . . Machines Disabled . | . . . Actions | -11 -10 -10 --------- Run | Yrd Mat Sub Total 1605 | 75 950 580 Wait 107 | . 92 15 Move 1367 | 64 815 488 Hop . | . . . Pick Up 17 | 1 11 5 Fast Attach 8 | 7 . 1 Attach 7 | . 2 5 Detach 1 | . 1 . Swap 16 | . 13 3 Drop 6 | . 4 2 Fire 76 | 3 12 61 Melee . | . . . Ram . | . . . Kick . | . . . Crush . | . . . Escape Stasis . | . . . Rewire . | . . . Trap . | . . . Miscellaneous . | . . . Route ------- -11/Scrapyard -10/Materials (discovered 6 exits: [*Mat x3] / *Min x2 / [*Sub]) -10/Subcaves (discovered 2 exits: [*Rec] / [*Scr]) History --------- Turn | Location | Event 16 | -11/Scrapyard | Discovered new exit (range 16) 93 | -11/Scrapyard | Entered Materials 94 | -10/Materials | Met a group of wandering Federalists 224 | -10/Materials | Discovered new exit (range 6) 310 | -10/Materials | Build established: Mutant 326 | -10/Materials | Discovered new exit (range 5) 379 | -10/Materials | Discovered new exit (range 12) 635 | -10/Materials | Repaired Mining Laser 659 | -10/Materials | Identified exit to Mines 689 | -10/Materials | Discovered new exit (range 4) 727 | -10/Materials | Discovered new exit (range 9) 937 | -10/Materials | Discovered new exit (range 16) 1240 | -10/Materials | Entered Subcaves 1241 | -10/Subcaves | Ambushed by Subdwellers from Twisted Machinery 1241 | -10/Subcaves | Continued accompanying wandering Federalists (1) 1241 | -10/Subcaves | Approached by a straggling Scientist 1755 | -10/Subcaves | Discovered new exit (range 12) 1761 | -10/Subcaves | Core integrity fell below 50% 1808 | -10/Subcaves | Core integrity fell below 20% 1930 | -10/Subcaves | Shifting Twisted Machinery released Shrapnel Trap 1958 | -10/Subcaves | Shifting Twisted Machinery released Mak. Shrapnel Gun 2081 | -10/Subcaves | Shifting Twisted Machinery released Flamer 2095 | -10/Subcaves | Shifting Twisted Machinery released Battle Cannon 2099 | -10/Subcaves | Destroyed by GX-RZL(R) with Subdweller Laser Last Messages --------------- here" Sub. Machine Gun destroyed. Autobeam Turret destroyed. Acquired 5 matter. Autobeam Turret destroyed. QN-B14(c): "I think it's somewhere southwest of here" Shrapnel Trap falls loose from the Twisted Machinery. QN-B14(c): "I think it's somewhere southwest of here" Mak. Shrapnel Gun falls loose from the Twisted Machinery. Acquired Mak. Shrapnel Gun. QN-B14(c): "I think it's somewhere southwest of here" Flamer falls loose from the Twisted Machinery. Battle Cannon falls loose from the Twisted Machinery. TU-H8E(R) destroyed. Map ----- +----------------------------------------------------+ | ???????????????? ???????## ## ###""" "### | | ????????????????? ???????###?###### ############# | | ?????????????????# ???????????##### ############ | | ??????????? ??### ????????####### ##?????## | | ???????????## #### ???????##### ###??##### | | ???????????## ### ######### ###?###### | | ???????????## ######## ####?#### # | | ???????????## ####?### # | | ???????????#### ####### # | | ????????????### # ###### | | ???????????### ### # #### """ | | ???????????## ?### ## ## " | | ??????????? # ????## ### ##### " | | ??????????? ??????### ### ###### ##"" | | ??????????? ????????## ########?############ | | ?????????????????????## #######??############ | | ?????????????????????## ###?????????????### | | ???????????????###???## ##???????????????? | | ???????????????## ???### ##???????????????? | | ???????????????## ??#### c ###???????????????? | | ???????????????### ???#### " ####???????????????? | | ??????????? ###### ??####""|###????????????????? | | ???????????####### #####" "##?????????????????? | | ???????????## ## " "###?????????????????? | | ?????????? "####?????????????????? | | ?????????? @#### ??????????????????? | | ?????????? R%###"???????????????????? | | ???????????### ## ""=! ?????????????????????? | | ???????????####?#### """ %??????????????????????? | | ?????????????????###" " ?????????????????????? | | ??????????????????##"" #???????????????????? | | ?????????????????? " ""### ##???????????????????? | | ????????????????????? ### > #???????????????????? | | ?????????????????????###?? ????????????????????? | | ??????????????????????????" " ???????????????????? | | ??????????????????????????" ???????????????????? | | ??????????????????????????" #?????????????????? | | ?????????????????????????? ####?????????????????? | | ?????????????????????????? #####?????????????????? | | ?????????????????????????? ###???????????????????? | | ?????????????????????????????????????????????????? | | ?????????????????????????????????????????????????? | | ?????????????????????????????????????????????????? | | ?????????????????????????????????????????????????? | | ?????????????????????????????????????????????????? | | ?????????????????????????????????????????????????? | | ?????????????????????????????????????????????????? | | ?????????????????????????????????????????????????? | | ?????????????????????????????????????????????????? | | ?????????????????????????????????????????????????? | +----------------------------------------------------+ Best States ------------- Heat Dissipation 25 Energy Generation 10 Energy Capacity 125 Matter Stores 493 Matter Capacity 500 Sight Range 16 Robot Scan Range 14 Terrain Scan Range 16 Terrain Scan Density 10 Evasion (%) 55 Item Schematics ----------------- None Robot Schematics ------------------ None Fabricated ------------ Nothing Repaired ---------- Mining Laser | 36% | -10/Materials Studied --------- None Alien Tech Used ----------------- None Achievements -------------- Strength In Numbers Challenges ------------ None Game ------ Seed NodeTripodShockpuncher Manual? 0 Play Time 00:30:38 Cumulative 3.2 hours Start 2026.03.24 @ 19:39:23 End 2026.03.24 @ 20:10:34 Sessions 1 Manual Loads 0 Difficulty Rogue Special Mode None Game No. 6 Rogue 6 Adventurer 0 Explorer 0 Win Type - Total 0 Types 0/0/0/0/0/0/0/0/0/0 Lore% 1 Gallery% 4 Achievement% 5 Wizard Run 0 Options --------- Layout 1 ASCII 0 Keyboard 0 Movement Numpad Keybinds 0 Fullscreen 1 Font 32/SmallcapsGlow Map View 50x35 Zoom Use 0% Tactical HUD 0 Map Filters NONE Filters NONE Steam 1 RUN: 14c1321a-bd33-443d-95ea-3c16de36c3f4